Cogmind - Beta 13 @@@ ROGUE MODE // 2024.04.08 @ 19:57:43 Player: Demo Result: Destroyed by S-27 Virus with Autogun Performance ------------- Evolutions (5) 2500 Regions Visited (8) 1600 Robots Destroyed (85) 425 Value Destroyed (2178) 2178 Prototype IDs (7) 140 Alien Tech Used (0) 0 Bonus (504) 504 TOTAL SCORE: 7347 Bonus ------- High Alert Combat Kills 22 Follower Combat Kills 282 Entered Garrisons 200 Cogmind --------- Core Integrity 0/1000 Matter 265/300 Energy 28/100 System Corruption 4% Temperature Cool (0) Movement Core (50) Location -5/Garrison Parts ------- > --- POWER (1) -------- (None) > --- PROPULSION (7) --- (None) > --- UTILITY (5) ------ Weight Redist. System > --- WEAPON (4) ------- Remote Datajack > --- INVENTORY (5) ---- (None) Peak State ------------ > --- POWER ------------ Fission-Ion Core > --- PROPULSION ------- FC Exoskeleton > --- UTILITY ---------- Armored Scrap Engine Advanced Heat Sink Advanced Targeting Computer Advanced Targeting Computer > --- WEAPON ----------- Plasma Cutter Kinetic Gauss Construct/G Accelerated Assault Construct/C > --- INVENTORY -------- Weight Redist. System Missile Launcher Remote Datajack Improved Plasma Cutter [Rating: 56] Favorites ----------- Power Constructs Engine Improved Ion Engine Power Core Constructs Propulsion Wheel Treads Light Treads Leg Constructs Wheel Wheel Flight Unit VTOL Module Utility Armored Scrap Engine Device Armored Scrap Engine Storage Humpback Processor Advanced Targeting Computer Weapon Constructs Energy Gun Medium Laser Ballistic Gun Constructs Ballistic Cannon Constructs Launcher Rocket Array Special Weapon Plasma Cutter Slashing Weapon Mining Claw Build | -11 -10 -10 -10 -9 -7 -6 -5 -5 ------- Run | Yrd Mat Min Sub Rec Fac Fac Fac Gar Slots Evolved 10 | . . . . . 6 2 2 . Power . | . . . . . . . . . Propulsion 5 | . . . . . 3 1 1 . Utility 3 | . . . . . 2 . 1 . Weapon 2 | . . . . . 1 1 . . Parts Attached 49 | 6 2 1 2 11 10 . 7 10 Power 2 | . . . . 2 . . . . Engine 2 | . . . . 2 . . . . Core . | . . . . . . . . . Reactor . | . . . . . . . . . Propulsion 21 | 2 . . 1 5 8 . 1 4 Treads 5 | 1 . . . 1 3 . . . Leg . | . . . . . . . . . Wheel 12 | 1 . . 1 4 5 . 1 . Hover . | . . . . . . . . . Flight 4 | . . . . . . . . 4 Utility 9 | 2 . . . 1 1 . 3 2 Device 5 | 1 . . . 1 . . 1 2 Storage 2 | 1 . . . . 1 . . . Processor 2 | . . . . . . . 2 . Hackware . | . . . . . . . . . Protection . | . . . . . . . . . Artifact . | . . . . . . . . . Weapon 17 | 2 2 1 1 3 1 . 3 4 Energy Gun 3 | 1 . . . 1 . . 1 . Energy Cannon . | . . . . . . . . . Ballistic Gun 4 | 1 1 . 1 . . . 1 . Ballistic Cannon . | . . . . . . . . . Launcher 3 | . . . . . 1 . 1 1 Special Weapon 3 | . . . . . . . . 3 Impact Weapon . | . . . . . . . . . Slashing Weapon 4 | . 1 1 . 2 . . . . Piercing Weapon . | . . . . . . . . . Special Melee Weapon . | . . . . . . . . . Unidentified Prototypes 1 | . . . . . 1 . . . Parts Lost 42 | . . . 4 1 4 . 16 17 Power 3 | . . . . . 1 . 1 1 Propulsion 17 | . . . 3 . 3 . 4 7 Utility 9 | . . . . . . . 5 4 Weapon 13 | . . . 1 1 . . 6 5 Highest Loss Streak 17 | . . . 3 1 2 . 11 17 To Critical Strikes . | . . . . . . . . . Average Slot Usage (%) 67 | . 85 85 84 80 70 60 40 43 Engine 5 | . . . . 11 6 6 2 . Treads 5 | . 14 14 13 12 4 . . . Wheel 11 | . 14 14 14 13 15 13 6 . Hover 1 | . . . . . 5 . . . Flight 1 | . . . . . . 3 3 . Device 9 | . 14 14 14 14 7 6 5 7 Storage 5 | . 14 14 14 . 6 6 3 . Processor 1 | . . . . . . . 3 10 Energy Gun 7 | . 14 14 14 15 2 4 3 . Ballistic Gun 4 | . 12 8 12 . 8 . . 5 Ballistic Cannon 2 | . . . . . 2 7 3 2 Launcher 2 | . . . . . 3 6 2 . Slashing Weapon 4 | . 1 5 1 12 3 . . . Naked Turns . | . . . . . . . . . Heaviest Build 224 | 10 10 10 10 13 221 219 224 17 Greatest Support 54 | 10 10 10 10 16 49 20 20 54 Greatest Overweight (x) 20 | . . . 2 2 13 10 20 3 Average Overweight (x) 2 | . . . . . 6 10 3 . Largest Inventory Capacity 35 | 8 8 8 8 8 35 35 35 5 Average Capacity 19 | 7 8 8 8 5 34 35 24 5 Most Carried 26 | 4 5 6 8 7 21 24 26 5 Average Carried 11 | 2 4 5 7 4 15 22 18 3 Final Capacity 35 | 8 8 8 8 5 35 35 5 5 Final Carried 24 | 4 5 6 8 5 21 24 5 . Scrap Engine Consumption 117 | . . . . 43 39 10 23 2 Constructs Created 9 | . . . . 1 3 . 3 2 Constructs Modified 23 | . . . . . 10 8 1 4 Class Distribution -------------------- 40% | Hauler-Construct 36% | Mutant 8% | Commander-Construct 6% | Hauler-Mutant 6% | Construct Dominant Class ---------------- Mutant | -10/Materials Mutant | -10/Mines Mutant | -10/Subcaves Mutant | -9/Recycling Hauler-Construct | -7/Factory Hauler-Construct | -6/Factory Hauler-Construct | -5/Factory Construct | -5/Garrison Resources | -11 -10 -10 -10 -9 -7 -6 -5 -5 ----------- Run | Yrd Mat Min Sub Rec Fac Fac Fac Gar Matter Collected 1519 | 263 59 . 118 185 486 70 159 179 Remotely . | . . . . . . . . . Salvage Created 3989 | 219 109 . 143 1779 787 110 561 281 Parts 204 | 23 5 . 8 44 52 5 50 17 Haulers Intercepted 3 | . . . . . 3 . . . Recyclers Shooed 7 | . . . . 4 2 . 1 . Parts Field Recycled . | . . . . . . . . . Retrieved Matter . | . . . . . . . . . Parts Self-Destructed 4 | . . . 4 . . . . . Prevented . | . . . . . . . . . Kills | -11 -10 -10 -10 -9 -7 -6 -5 -5 ------- Run | Yrd Mat Min Sub Rec Fac Fac Fac Gar Combat Hostiles Destroyed 41 | . 3 . 2 3 10 1 15 7 Melee 1 | . . . . 1 . . . . Guns 19 | . 3 . 2 2 6 . 3 3 Cannons 9 | . . . . . 2 1 2 4 AOE 12 | . . . . . 2 . 10 . Classes Destroyed 15 | 2 2 . 3 2 6 . . . Worker 9 | . . . . . 4 2 3 . Builder 9 | . . . . 1 4 . 4 . Tunneler 7 | 7 . . . . . . . . Hauler 3 | . . . . . 3 . . . Recycler 15 | 1 . . . 12 2 . . . Watcher 1 | . . . . . 1 . . . Swarmer 11 | . 1 . . . . . 5 5 Grunt 6 | . 2 . . . 4 . . . Brawler 1 | . . . . . 1 . . . Sentry 6 | . . . . 3 . 1 . 2 Hunter 11 | . . . . . 3 . 8 . Programmer 4 | . . . . . 2 . 2 . Artisan 1 | . . . 1 . . . . . Cobbler 1 | . . . 1 . . . . . Subdweller 2 | . . . 2 . . . . . Best Kill Streak 9 | 6 2 . 1 4 6 1 9 5 Combat Bots Only 6 | . 2 . 1 1 3 1 6 5 Max Kills in Single Turn 4 | 2 1 . 1 1 3 1 4 2 Gunslinging . | . . . . . . . . . Exploded 4 | . . . . . 1 . 4 . Melee 1 | . . . . 1 . . . . Uniques/NPCs Destroyed . | . . . . . . . . . Combat | -11 -10 -10 -10 -9 -7 -6 -5 -5 -------- Run | Yrd Mat Min Sub Rec Fac Fac Fac Gar Hostile Shots Fired 515 | . 11 . 46 25 72 30 191 140 Missed 151 | . 6 . 12 8 16 15 51 43 Damage Taken 5974 | . 53 . 401 352 840 107 2427 1794 Core 1301 | . . . 59 91 91 43 457 560 Absorbed by Shields 160 | . . . . . . . 160 . Regen/Repaired (Parts) 527 | . . . . 77 168 148 117 17 Core Remaining (%) 80 | 100 . . . 40 87 94 . . Volleys Fired 213 | 13 6 . 26 31 46 6 38 47 Largest 4 | 2 2 . 2 2 2 2 4 3 Hottest 136 | 70 70 . 70 106 57 57 136 90 Shots Fired 376 | 26 12 . 52 43 86 12 80 65 Gun 255 | 26 12 . 52 43 47 2 52 21 Cannon 80 | . . . . . 35 10 20 15 Launcher 13 | . . . . . 4 . 8 1 Special 28 | . . . . . . . . 28 Kinetic 212 | 13 6 . 26 20 76 6 29 36 Thermal 140 | 13 6 . 26 23 . 2 43 27 Explosive 13 | . . . . . 4 . 8 1 Electromagnetic 10 | . . . . . 6 4 . . Robot Hit Streak 17 | 6 6 . 9 11 8 5 17 9 Robot Miss Streak 5 | 2 1 . 2 4 4 1 5 2 Penetration Max 1 | . . . . . . . . 1 Secondary Targets 2 | . . . . . 1 . 1 . Max Gunslinging Chain 1 | . . . . . 1 . 1 . Shots Hit Robots 310 | 15 8 . 35 92 73 7 54 26 Core Hits 191 | 9 4 . 9 30 67 7 51 14 Critical Kills 1 | . . . . 1 . . . . Critical Parts Destroyed . | . . . . . . . . . Critical Strikes 8 | 1 . . 3 2 . 1 1 . Burn 5 | 1 . . 2 1 . . 1 . Destroy 2 | . . . 1 1 . . . . Blast 1 | . . . . . . 1 . . Melee Attacks 87 | . 6 9 . 69 3 . . . Impact . | . . . . . . . . . Slashing 87 | . 6 9 . 69 3 . . . Piercing . | . . . . . . . . . Sneak Attacks 22 | . . . . 21 1 . . . Combat Hostiles 2 | . . . . 2 . . . . Follow-up Attacks . | . . . . . . . . . Damage Inflicted 8491 | 203 112 . 434 2972 1829 115 2173 653 Guns 2547 | 203 89 . 434 451 509 . 618 243 Cannons 1003 | . . . . . 445 115 218 225 Explosions 2264 | . . . . . 829 . 1337 98 Melee 2590 | . 23 . . 2521 46 . . . Ramming 16 | . . . . . . . . 16 Kinetic 2411 | 90 52 . 222 261 928 97 293 468 Thermal 1208 | 113 37 . 212 190 . . 585 71 Explosive 2222 | . . . . . 829 . 1295 98 Electromagnetic 44 | . . . . . 26 18 . . Impact . | . . . . . . . . . Slashing 2590 | . 23 . . 2521 46 . . . Piercing . | . . . . . . . . . Highest Corruption 6 | . . . . . 6 . 4 4 Average Corruption 3 | . . . . . 3 . 3 4 Corruption Purged . | . . . . . . . . . Corruption Blocked . | . . . . . . . . . Effects 26 | . . . . . 13 . 6 7 Message Errors 6 | . . . . . 2 . 4 . Matter Fused 2 | . . . . . 2 . . . Heat Flow Errors 2 | . . . . . 2 . . . Energy Discharges 6 | . . . . . 3 . . 3 Parts Rejected 2 | . . . . . 1 . . 1 Data Loss (minor) 3 | . . . . . 1 . 2 . Data Loss (major) 1 | . . . . . . . . 1 Alerts 1 | . . . . . . . . 1 Weapon Failures 3 | . . . . . 2 . . 1 Overload Shots . | . . . . . . . . . Overflow Damage 544 | . . . . 518 1 . 25 . Projectiles 2 | . . . . . . . 2 . Explosions 24 | . . . . . 1 . 23 . Melee 518 | . . . . 518 . . . . Knockbacks 14 | . . . . . 2 . 11 1 Impact . | . . . . . . . . . Kinetic 13 | . . . . . 2 . 10 1 Secondary 1 | . . . . . . . 1 . Self-Inflicted Damage 231 | . . . . . 18 . 149 64 Shots 8 | . . . . . 1 . 6 1 Rammed 1 | . . . . . . . . 1 Targets Rammed 1 | . . . . . . . . 1 Kicked . | . . . . . . . . . Crushed . | . . . . . . . . . Highest Temperature 275 | . 6 . 1 275 116 6 15 8 Average Temperature 86 | . 3 . 1 110 74 6 9 5 Received Heat Transfer 597 | . 18 . 90 90 135 30 . 234 Effects 1 | . . . . 1 . . . . Interference 1 | . . . . 1 . . . . Siege Activations . | . . . . . . . . . Robots Corrupted . | . . . . . . . . . Combat Hostiles . | . . . . . . . . . Parts Fried . | . . . . . . . . . Impact Corruptions . | . . . . . . . . . Robots Melted . | . . . . . . . . . Combat Hostiles . | . . . . . . . . . Parts Melted 1 | . . . . 1 . . . . Heat Transferred 2529 | 407 111 . 777 592 . . 420 222 Parts Sabotaged . | . . . . . . . . . Parts Stolen . | . . . . . . . . . Parts Stripped . | . . . . . . . . . Power Chain Reactions 1 | . . . . . . . 1 . Alert | -11 -10 -10 -10 -9 -7 -6 -5 -5 ------- Run | Yrd Mat Min Sub Rec Fac Fac Fac Gar Peak Influence 448 | 40 173 69 . 183 301 137 382 448 Initial 270 | . 26 67 . 82 35 92 . 270 Average 109 | 22 73 67 . 70 166 52 70 309 Maximum Alert Level 2 | . . . . . 1 . 1 2 Low Security (%) 79 | 100 100 100 . 100 57 100 86 . Level 1 19 | . . . . . 42 . 13 86 Level 2 1 | . . . . . . . . 13 Level 3 . | . . . . . . . . . Level 4 . | . . . . . . . . . Level 5 . | . . . . . . . . . High Security . | . . . . . . . . . Max Security . | . . . . . . . . . Squads Dispatched 13 | . 1 . . . 8 1 3 . Investigation 2 | . . . . . 2 . . . Extermination 4 | . . . . . 2 1 1 . Reinforcement 7 | . 1 . . . 4 . 2 . Assault . | . . . . . . . . . Garrison . | . . . . . . . . . Intercept . | . . . . . . . . . Searches Triggered . | . . . . . . . . . Construction Impeded 3 | . . . . . 1 . 2 . Haulers Reinforced 1 | . . . . . 1 . . . Active Scanning Responses . | . . . . . . . . . Cargo Convoy Interrupts . | . . . . . . . . . Stealth | -11 -10 -10 -10 -9 -7 -6 -5 -5 --------- Run | Yrd Mat Min Sub Rec Fac Fac Fac Gar Distress Signals 6 | . 1 . . 1 2 . 2 . Communications Jammed . | . . . . . . . . . Distress Signals . | . . . . . . . . . Times Spotted 110 | . 8 . 21 4 26 1 26 24 Peak Tracking Total 17 | . 4 . 6 2 4 1 9 17 Tactical Retreats 8 | . 2 . 1 . 1 . 1 3 Traps | -11 -10 -10 -10 -9 -7 -6 -5 -5 ------- Run | Yrd Mat Min Sub Rec Fac Fac Fac Gar Traps Triggered 4 | . . . . . 2 . 2 . Indirectly . | . . . . . . . . . Trap Hack Attempts . | . . . . . . . . . Triggered . | . . . . . . . . . Disarmed . | . . . . . . . . . Reprogrammed . | . . . . . . . . . Reused . | . . . . . . . . . Traps Extracted . | . . . . . . . . . Installed 1 | . . . 1 . . . . . Triggered . | . . . . . . . . . Machines | -11 -10 -10 -10 -9 -7 -6 -5 -5 ---------- Run | Yrd Mat Min Sub Rec Fac Fac Fac Gar Machines Disabled 2 | . . . . 1 . . . 1 Max in Single Turn 1 | . . . . 1 . . . 1 Machines Repaired . | . . . . . . . . . Machines Dismantled . | . . . . . . . . . Machines Sabotaged . | . . . . . . . . . Overloaded Fab Kills . | . . . . . . . . . Hacking | -11 -10 -10 -10 -9 -7 -6 -5 -5 --------- Run | Yrd Mat Min Sub Rec Fac Fac Fac Gar Machines Accessed 24 | . 1 . . 13 5 1 3 1 Terminals 13 | . 1 . . 6 2 1 2 1 Fabricators 1 | . . . . . 1 . . . Repair Stations . | . . . . . . . . . Recycling Units 8 | . . . . 7 1 . . . Scanalyzers . | . . . . . . . . . Garrison Access 2 | . . . . . 1 . 1 . Total Hacks 69 | . 1 . . 45 12 2 6 3 Successful 27 | . . . . 22 4 . 1 . Failed 42 | . 1 . . 23 8 2 5 3 Catastrophic 6 | . . . . 3 1 . 1 1 Database Lockouts . | . . . . . . . . . Manual 38 | . 1 . . 28 6 2 1 . Terminals 33 | . 1 . . 18 5 2 4 3 Fabricators 2 | . . . . . 2 . . . Repair Stations . | . . . . . . . . . Recycling Units 30 | . . . . 27 3 . . . Scanalyzers . | . . . . . . . . . Garrison Access 4 | . . . . . 2 . 2 . Terminal Hacks 7 | . . . . 6 1 . . . Robot Analysis 1 | . . . . 1 . . . . Prototype ID Bank 1 | . . . . 1 . . . . Terminal Index 1 | . . . . . 1 . . . Alert Level 1 | . . . . 1 . . . . Surveillance Status 1 | . . . . 1 . . . . Hauler Manifests 1 | . . . . 1 . . . . Zone Layout 1 | . . . . 1 . . . . Fabricator Hacks 1 | . . . . . 1 . . . Network Status 1 | . . . . . 1 . . . Repair Station Hacks . | . . . . . . . . . Recycling Unit Hacks 7 | . . . . 6 1 . . . Report Inventory 1 | . . . . 1 . . . . Retrieve Components 6 | . . . . 5 1 . . . Scanalyzer . | . . . . . . . . . Garrison Access Hacks 1 | . . . . . . . 1 . Unlock Access 1 | . . . . . . . 1 . Unauthorized Hacks 11 | . . . . 10 1 . . . Terminals 1 | . . . . 1 . . . . Operators 1 | . . . . 1 . . . . Fabricators . | . . . . . . . . . Repair Stations . | . . . . . . . . . Recycling Units 10 | . . . . 9 1 . . . Reject 7 | . . . . 7 . . . . Mask 2 | . . . . 2 . . . . Tunnel 1 | . . . . . 1 . . . Scanalyzers . | . . . . . . . . . Garrison Access . | . . . . . . . . . Data Cores Recovered . | . . . . . . . . . Used . | . . . . . . . . . Hacking Detections 17 | . 1 . . 9 3 1 2 1 Full Trace Events 2 | . . . . . 1 . . 1 Feedback Events 1 | . . . . . 1 . . . Corruption 1 | . . . . . 1 . . . Feedback Blocked . | . . . . . . . . . Robot Schematics Acquired . | . . . . . . . . . Robots Built . | . . . . . . . . . Authchips . | . . . . . . . . . Time . | . . . . . . . . . Total Robot Build Rating . | . . . . . . . . . Part Schematics Acquired . | . . . . . . . . . Parts Built . | . . . . . . . . . Authchips . | . . . . . . . . . Time . | . . . . . . . . . Total Part Build Rating . | . . . . . . . . . Parts Repaired . | . . . . . . . . . Time . | . . . . . . . . . Parts Recycled . | . . . . . . . . . Recycled Matter . | . . . . . . . . . Retrieved Matter . | . . . . . . . . . Retrieved Components 6 | . . . . 6 . . . . Parts Scanalyzed . | . . . . . . . . . Part Schematics Acquired . | . . . . . . . . . Parts Damaged . | . . . . . . . . . Bothacking | -11 -10 -10 -10 -9 -7 -6 -5 -5 ------------ Run | Yrd Mat Min Sub Rec Fac Fac Fac Gar Used RIF Installer . | . . . . . . . . . Robots Hacked 1 | . . . . . . . . 1 Non-combat . | . . . . . . . . . Combat 1 | . . . . . . . . 1 Robot Hacks Applied 1 | . . . . . . . . 1 parse_system 1 | . . . . . . . . 1 Relay Couplers Released . | . . . . . . . . . Fabnet Peak Effective % . | . . . . . . . . . Robots Rewired 7 | . . . . 7 . . . . Allies Hacked . | . . . . . . . . . Hacks Repelled . | . . . . . . . . . Allies | -11 -10 -10 -10 -9 -7 -6 -5 -5 -------- Run | Yrd Mat Min Sub Rec Fac Fac Fac Gar Total Allies 8 | . . 1 . 7 . . . . Largest Group 7 | . . 1 . 7 7 . . . Highest-Rated Group 143 | . . 31 . 143 143 . . . Highest-Rated Ally 34 | . . 31 . 34 34 . . . Total Orders . | . . . . . . . . . Ally Attacks 19 | . . . . . 19 . . . Total Damage 1497 | . . . . . 1497 . . . Kills 15 | . . . . . 15 . . . Allies Corrupted . | . . . . . . . . . Allies Melted . | . . . . . . . . . Intel | -11 -10 -10 -10 -9 -7 -6 -5 -5 ------- Run | Yrd Mat Min Sub Rec Fac Fac Fac Gar Robot Analysis Total 1 | . . . . 1 . . . . Derelict Logs Recovered 1 | . . . 1 . . . . . Drone Launches . | . . . . . . . . . Drone Recoveries . | . . . . . . . . . Exploration | -11 -10 -10 -10 -9 -7 -6 -5 -5 ------------- Run | Yrd Mat Min Sub Rec Fac Fac Fac Gar Turns Passed 5242 | 211 295 81 372 1185 1203 820 672 403 Spaces Moved 2958 | 66 134 41 358 834 527 327 416 255 Core 274 | 8 . . 1 17 . . 232 16 Treads . | . . . . . . . . . Legs 182 | . . . . . . . . 182 Wheels 2405 | 58 134 41 357 817 527 327 144 . Hover . | . . . . . . . . . Flight 97 | . . . . . . . 40 57 Fastest Speed 32 | 50 80 80 80 50 100 230 50 32 Average Speed 128 | 76 80 80 80 100 190 230 123 82 Slowest Speed 380 | 80 80 80 150 150 295 230 380 200 Overloaded Moves . | . . . . . . . . . Propulsion Burnouts . | . . . . . . . . . Robots Hopped 1 | . . . . . . . . 1 Cave-ins Triggered . | . . . . . . . . . Exploration Rate (%) 25 | 3 24 8 25 97 16 6 17 35 Regions Visited 8 Branch Regions 3 Pre-discovered Areas 1 | . . . . . 1 . . . Known Exits Taken 1 | . . . . . . . 1 . Unknown Exits Taken 7 | 1 1 1 1 1 1 1 . . Scrap Searched 2 | . . . 2 . . . . . Spaces Dug 12 | . 3 8 . . . . . 1 Terrain Destroyed 149 | . 3 8 . . 42 . 85 11 Melee 11 | . 3 8 . . . . . . Projectile 4 | . . . . . . . 2 2 AOE 134 | . . . . . 42 . 83 9 Terrain Rammed . | . . . . . . . . . Walls Destroyed . | . . . . . . . . . Machines Disabled . | . . . . . . . . . Actions | -11 -10 -10 -10 -9 -7 -6 -5 -5 --------- Run | Yrd Mat Min Sub Rec Fac Fac Fac Gar Total 3816 | 197 296 70 391 997 626 384 500 355 Wait 412 | 109 148 19 1 14 13 47 18 43 Move 2949 | 65 133 40 357 833 526 326 416 253 Hop 1 | . . . . . . . . 1 Pick Up 36 | 4 1 1 3 1 19 4 3 . Fast Attach 22 | 6 . . . 3 7 . 1 5 Attach 19 | . . . 1 5 2 . 6 5 Detach 2 | . . . . . . . 2 . Swap 8 | . 2 1 1 3 1 . . . Drop 13 | . . . 1 7 2 1 2 . Fire 213 | 13 6 . 26 31 46 6 38 47 Melee 87 | . 6 9 . 69 3 . . . Ram 1 | . . . . . . . . 1 Kick . | . . . . . . . . . Crush . | . . . . . . . . . Escape Stasis 21 | . . . . . 7 . 14 . Rewire 31 | . . . . 31 . . . . Trap 1 | . . . 1 . . . . . Miscellaneous . | . . . . . . . . . Route ------- -11/Scrapyard -10/Materials -10/Mines -10/Subcaves -9/Recycling -7/Factory -6/Factory (discovered 2 exits: *Fac / [*Low]) -5/Factory -5/Garrison History --------- Turn | Location | Event 9 | -11/Scrapyard | Discovered new exit (range 16) 212 | -11/Scrapyard | Entered Materials 305 | -10/Materials | Build established: Mutant 498 | -10/Materials | Discovered new exit (range 9) 507 | -10/Materials | Entered Mines 510 | -10/Mines | Received a Mining Laser from a helpful Derelict 584 | -10/Mines | Discovered new exit (range 3) 588 | -10/Mines | Entered Subcaves 654 | -10/Subcaves | Learned Materials stockpile data 803 | -10/Subcaves | Ambushed by angry Subdweller bent on revenge 955 | -10/Subcaves | Discovered new exit (range 8) 960 | -10/Subcaves | Entered Recycling 964 | -9/Recycling | Found Scrap Engine 991 | -9/Recycling | Lost 3 parts (2n1w) 1597 | -9/Recycling | Core integrity fell below 50% 1974 | -9/Recycling | Build established: Commander-Construct 1995 | -9/Recycling | Discovered new exit (range 16) 2145 | -9/Recycling | Entered Factory 2145 | -7/Factory | Accompanied by 7 allies 2145 | -7/Factory | Evolved 6 slots: Propulsion x3, Utility x2, Weapon x1 2200 | -7/Factory | Found Prototype Launcher 2206 | -7/Factory | Found Prototype Launcher 2470 | -7/Factory | Build established: Hauler-Mutant 2780 | -7/Factory | Identified Rocket Array (x2) 2801 | -7/Factory | Build established: Hauler-Construct 3294 | -7/Factory | Discovered new exit (range 9) 3348 | -7/Factory | Entered another Factory area 3348 | -6/Factory | Evolved 2 slots: Propulsion x1, Weapon x1 3706 | -6/Factory | Discovered new exit (range 14) 3773 | -6/Factory | Discovered new exit (range 9) 4168 | -6/Factory | Entered another Factory area 4168 | -5/Factory | Evolved 2 slots: Propulsion x1, Utility x1 4577 | -5/Factory | Lost 4 parts (1p1n1u1w) 4652 | -5/Factory | Lost 11 parts (2n4u5w) 4840 | -5/Factory | Identified exit to Garrison 4840 | -5/Factory | Entered Garrison 4976 | -5/Garrison | Triggered checkpoint 5094 | -5/Garrison | Triggered checkpoint 5140 | -5/Garrison | Core integrity fell below 50% 5201 | -5/Garrison | Core integrity fell below 20% 5218 | -5/Garrison | Triggered checkpoint 5243 | -5/Garrison | Destroyed by S-27 Virus with Autogun Last Messages --------------- 05202_ Slug penetrates Wall. 05203_ Penetrated by Slug. 05209_ Acquired VTOL Module. 05210_ Penetrated by Slug. 05210_ VTOL Module destroyed. 05211_ System corrupted: Substantial component data lost. 05214_ VTOL Module destroyed. 05218_ Beams of light sweep through the air. An alarm sounds. 05222_ VTOL Module destroyed. 05225_ Connecting with Garrison Terminal... 05225_ ALERT: Suspicious activity at Terminal G001. Transmitting hostile system tracking data. 05227_ Adv. Targeting Computer destroyed. 05241_ Imp. Plasma Cutter destroyed. 05242_ Jacked S-27 Virus... >>parse_system Reading system data... Map ----- +----------------------------------------------------+ | ????????????????????????????????????????????????? | | ????????????????????????????????????????????????? | | ????????????????????????????????????????????????? | | ????????????????????????????????????????????????? | | ????????????????????????????????????????????????? | | ????????????????????????????????????????????????? | | ????????????????????????????????????????????????? | | ????????????????????????????????????????????????? | | ????????????????????????????????????????????????? | | ????????????????????????????????????????????????? | | ????????????????????????????????????????????????? | | ????????????????????????????????????????????????? | | ????????????????????????????????????????????????? | | ????????????????????????????????????????????????? | | ????????????????????????????????????????????????? | | ????????????????????????????????????????????????? | | ????????????????????????????????????????????????? | | ??????????????##????????????????????????????????? | | ?????????????? ????????????????????????????????? | | ?????????????? ????????????????????????????????? | | ?????????????# ????????????????????????????????? | | ?????????????# ????????????????????????????????? | | ?????????????# ???????####?????????????????????? | | ????????????? ???????#""#?????????????????????? | | ?????????????# #??????#T #?????????????????????? | | ?????????????# #??????#"@#?????????????????????? | | ??? ?????????# #??????##s#?????????????????????? | | ??? ?????????# #???????#s#?????????????????????? | | ??? ?????????# #???????#s#?????????????????????? | | ??# ?????????# #???????#g#?????????????????????? | | ??# ####T##### #########g###???????????????????? | | ??# s Y #???????????????????? | | ??# ^ #???????????????????? | | ??# ######### ### ##### #???????????????????? | | ??# #???????# #?# #???# #???????????????????? | | ??# #???????# #?#####???# #???????????????????? | | ??# #???????# #?????????# #???????????????????? | | ### #???????# #?????????# #???????????????????? | | ## #???????# #?????????# #???????????????????? | | ## ##??????# #?????????! !???????????????????? | | ######## #?????????! !???????????????????? | | #?????????###???????????????????? | | % #???????????????????????????????? | | ##[ ###########???????????????????????????????? | | ## #?????????????????????????????????????????? | | "?????????????????????????????????????????? | | "?????????????????????????????????????????? | | "?????????????????????????????????????????? | | "?????????????????????????????????????????? | | ## #?????????????????????????????????????????? | +----------------------------------------------------+ Best States ------------- Heat Dissipation 40 Energy Generation 12 Energy Capacity 282 Matter Stores 300 Matter Capacity 300 Sight Range 16 Terrain Scan Density 10 Evasion (%) 63 Targeting Accuracy 16 Item Schematics ----------------- None Robot Schematics ------------------ None Fabricated ------------ Nothing Alien Tech Used ----------------- None Achievements -------------- Tank Challenges ------------ None Game ------ Seed WaveFocalClaw Manual? 0 Play Time 00:38:34 Cumulative 61.2 hours Start 2024.04.08 @ 19:20:21 End 2024.04.08 @ 19:57:43 Sessions 1 Manual Loads 0 Difficulty Rogue Special Mode None Game No. 70 Rogue 70 Adventurer 0 Explorer 0 Win Type - Total 0 Types 0/0/0/0/0/0/0/0/0 Lore% 39 Gallery% 59 Achievement% 47 Wizard Run 0 Options --------- Layout 1 ASCII 0 Keyboard 0 Movement Numpad Keybinds 0 Fullscreen 1 Font 24/Smallcaps Map View 50x35 Zoom Use 0% Tactical HUD 1 Map Filters NONE Filters NONE Steam 1 RUN: 36c5cf82-1a35-43b5-a06f-a8a26d491f04